fUSD/lending_fUSD_20240223
["ID","MTS","AMOUNT","RATE_DAILY","PERIOD"]
[314980427,1708714250615,-500.0,0.00027397,2]
[314980428,1708714250625,-500.0,0.00027397,2]
[314980429,1708714250635,-502.68806739,0.00027397,2]
[314980430,1708714250645,-500.0,0.00027397,2]
[314980431,1708714250655,-500.0,0.00027397,2]
[314980432,1708714250665,-500.0,0.00027397,2]
[314980433,1708714250675,-500.0,0.00027397,2]
[314980434,1708714250685,-500.0,0.00027397,2]
[314980435,1708714250696,-504.55994873,0.00027397,2]
[314980436,1708714250706,-500.0,0.00027397,2]
[314980437,1708714250716,-500.0,0.00027397,2]
[314980438,1708714250726,-497.50071613,0.00027397,2]
[314980439,1708714250737,-500.0,0.00027397,2]
[314980440,1708714250746,-500.0,0.00027397,2]
[314980441,1708714250757,-500.0,0.00027397,2]
[314980442,1708714250768,-500.0,0.00027397,2]
[314980443,1708714250778,-500.0,0.00027397,2]
[314980444,1708714250788,-500.0,0.00027397,2]
[314980445,1708714250799,-500.0,0.00027397,2]
[314980446,1708714250809,-503.45574224,0.00027397,2]
[314980447,1708714250819,-500.0,0.00027397,2]
[314980448,1708714250829,-500.0,0.00027397,2]
[314980449,1708714250840,-500.0,0.00027397,2]
[314980450,1708714250851,-500.0,0.00027397,2]
[314980451,1708714250861,-500.0,0.00027397,2]
[314980452,1708714250871,-500.0,0.00027397,2]
[314980453,1708714250881,-500.0,0.00027397,2]
[314980454,1708714250891,-500.0,0.00027397,2]
[314980455,1708714250902,-500.0,0.00027397,2]
[314980456,1708714250912,-500.0,0.00027397,2]
[314980457,1708714250922,-500.0,0.00027397,2]
[314980458,1708714250932,-500.0,0.00027397,2]
[314980459,1708714250942,-500.0,0.00027397,2]
[314980460,1708714250952,-500.0,0.00027397,2]
[314980461,1708714250963,-500.0,0.00027397,2]
[314980462,1708714250973,-523.03413198,0.00027397,2]
[314980463,1708714250984,-500.0,0.00027397,2]
[314980464,1708714250994,-500.0,0.00027397,2]
[314980465,1708714251004,-500.0,0.00027397,2]
[314980466,1708714251018,-500.0,0.00027397,2]
[314980467,1708714251028,-500.0,0.00027397,2]
[314980468,1708714251038,-500.0,0.00027397,2]
[314980469,1708714251048,-504.87085053,0.00027397,2]
[314980470,1708714251058,-500.0,0.00027397,2]
[314980471,1708714251069,-500.0,0.00027397,2]
[314980472,1708714251079,-500.0,0.00027397,2]
[314980473,1708714251090,-500.0,0.00027397,2]
[314980474,1708714251101,-500.0,0.00027397,2]
[314980475,1708714251112,-500.0,0.00027397,2]
[314980476,1708714251122,-500.0,0.00027397,2]
[314980477,1708714251133,-500.0,0.00027397,2]
[314980478,1708714251143,-500.0,0.00027397,2]
[314980479,1708714251154,-500.0,0.00027397,2]
[314980480,1708714251164,-500.0,0.00027397,2]
[314980481,1708714251174,-500.0,0.00027397,2]
[314980482,1708714251184,-500.0,0.00027397,2]
[314980483,1708714251194,-500.0,0.00027397,2]
[314980484,1708714251205,-500.0,0.00027397,2]
[314980485,1708714251215,-500.0,0.00027397,2]
[314980486,1708714251227,-500.0,0.00027397,2]
[314980487,1708714251239,-504.11303926,0.00027397,2]
[314980488,1708714251250,-517.7056478,0.00027397,2]
[314980489,1708714251261,-500.0,0.00027397,2]
[314980490,1708714251273,-500.0,0.00027397,2]
[314980491,1708714251284,-500.0,0.00027397,2]
[314980492,1708714251295,-500.0,0.00027397,2]
[314980493,1708714251306,-500.0,0.00027397,2]
[314980494,1708714251316,-500.0,0.00027397,2]
[314980495,1708714251326,-500.0,0.00027397,2]
[314980496,1708714251337,-500.0,0.00027397,2]
[314980497,1708714251347,-501.30189827,0.00027397,2]
[314980498,1708714251358,-505.82666457,0.00027397,2]
[314980499,1708714251368,-500.0,0.00027397,2]
[314980500,1708714251379,-502.77483894,0.00027397,2]
[314980501,1708714251390,-649.78,0.00027397,2]
[314980502,1708714251400,-500.0,0.00027397,2]
[314980503,1708714251410,-500.0,0.00027397,2]
[314980504,1708714251422,-500.0,0.00027397,2]
[314980505,1708714251433,-511.58380753,0.00027397,2]
[314980506,1708714251444,-500.0,0.00027397,2]
[314980507,1708714251454,-500.0,0.00027397,2]
[314980508,1708714251465,-501.98323567,0.00027397,2]
[314980509,1708714251477,-500.0,0.00027397,2]
[314980510,1708714251489,-500.0,0.00027397,2]
[314980511,1708714251499,-500.0,0.00027397,2]
[314980512,1708714251509,-500.0,0.00027397,2]
[314980513,1708714251525,-500.0,0.00027397,2]
[314980514,1708714251535,-500.0,0.00027397,2]
[314980515,1708714251545,-500.0,0.00027397,2]
[314980516,1708714251556,-500.0,0.00027397,2]
[314980517,1708714251568,-508.82193844,0.00027397,2]
[314980518,1708714251578,-500.0,0.00027397,2]
[314980519,1708714251589,-500.0,0.00027397,2]
[314980520,1708714251599,-500.0,0.00027397,2]
[314980521,1708714251609,-508.45360258,0.00027397,2]
[314980522,1708714251619,-500.0,0.00027397,2]
[314980523,1708714251629,-500.0,0.00027397,2]
[314980524,1708714251640,-500.0,0.00027397,2]
[314980525,1708714251650,-500.0,0.00027397,2]
[314980526,1708714251660,-500.0,0.00027397,2]
[314980527,1708714251671,-500.0,0.00027397,2]
[314980528,1708714251681,-500.0,0.00027397,2]
[314980529,1708714251691,-500.0,0.00027397,2]
[314980530,1708714251701,-500.0,0.00027397,2]
[314980531,1708714251711,-500.0,0.00027397,2]
[314980532,1708714251722,-500.0,0.00027397,2]
[314980533,1708714251732,-500.0,0.00027397,2]
[314980534,1708714251742,-500.0,0.00027397,2]
[314980535,1708714251753,-500.0,0.00027397,2]
[314980536,1708714251765,-350.96294403,0.00027397,2]
[314980537,1708714252317,-149.03705597,0.00027397,2]
[314980538,1708714252328,-319.41794303,0.00027397,2]
[314980539,1708714252341,-180.58205697,0.00027397,2]
[314980540,1708714252351,-501.8946361,0.00027397,2]
[314980541,1708714252361,-505.9108955,0.00027397,2]
[314980542,1708714252370,-576.2209515,0.00027397,2]
[314980543,1708714252381,-500.0,0.00027397,2]
[314980544,1708714252392,-500.0,0.00027397,2]
[314980545,1708714252402,-500.0,0.00027397,2]
[314980546,1708714252412,-505.52489213,0.00027397,2]
[314980547,1708714252423,-500.0,0.00027397,2]
[314980548,1708714252433,-505.05099498,0.00027397,2]
[314980549,1708714252443,-500.0,0.00027397,2]
[314980550,1708714252453,-500.0,0.00027397,2]
[314980551,1708714252463,-500.0,0.00027397,2]
[314980552,1708714252473,-500.0,0.00027397,2]
[314980553,1708714252485,-500.0,0.00027397,2]
[314980554,1708714252496,-500.0,0.00027397,2]
[314980555,1708714252506,-176.50730092,0.00027397,2]
[314980556,1708714252521,-500.0,0.00027397,2]
[314980557,1708714252531,-500.41147012,0.00027397,2]
[314980558,1708714252540,-500.0,0.00027397,2]
[314980559,1708714252550,-500.0,0.00027397,2]
[314980560,1708714252560,-500.0,0.00027397,2]
[314980561,1708714252570,-507.09806135,0.00027397,2]
[314980562,1708714252580,-514.2089999,0.00027397,2]
[314980563,1708714252590,-500.0,0.00027397,2]
[314980564,1708714252599,-513.10403484,0.00027397,2]
[314980565,1708714252609,-500.0,0.00027397,2]
[314980566,1708714252619,-502.39811101,0.00027397,2]
[314980567,1708714252629,-500.0,0.00027397,2]
[314980568,1708714252638,-500.0,0.00027397,2]
[314980569,1708714252647,-504.06580872,0.00027397,2]
[314980570,1708714252658,-500.0,0.00027397,2]
[314980571,1708714252667,-504.4031275,0.00027397,2]
[314980572,1708714252677,-509.91471799,0.00027397,2]
[314980573,1708714252687,-500.0,0.00027397,2]
[314980574,1708714252698,-500.0,0.00027397,2]
[314980575,1708714252707,-500.0,0.00027397,2]
[314980576,1708714252717,-517.39936023,0.00027397,2]
[314980577,1708714252726,-500.0,0.00027397,2]
[314980578,1708714252735,-500.0,0.00027397,2]
[314980579,1708714252744,-500.0,0.00027397,2]
[314980580,1708714252754,-500.0,0.00027397,2]
[314980581,1708714252766,-500.0,0.00027397,2]
[314980582,1708714252776,-500.0,0.00027397,2]
[314980583,1708714252785,-500.0,0.00027397,2]
[314980584,1708714252795,-500.0,0.00027397,2]
[314980585,1708714252804,-500.0,0.00027397,2]
[314980586,1708714252814,-500.0,0.00027397,2]
[314980587,1708714252826,-500.0,0.00027397,2]
[314980588,1708714252836,-1044.95,0.00027397,2]
[314980589,1708714252845,-500.0,0.00027397,2]
[314980590,1708714252855,-609.75,0.00027397,2]
[314980591,1708714252865,-500.0,0.00027397,2]
[314980592,1708714252875,-500.0,0.00027397,2]
[314980593,1708714252885,-500.0,0.00027397,2]
[314980594,1708714252895,-505.73076682,0.00027397,2]
[314980595,1708714252904,-500.0,0.00027397,2]
[314980596,1708714252913,-383.71354876,0.00027397,2]
[314980597,1708714252922,-500.0,0.00027397,2]
[314980598,1708714252932,-506.62777554,0.00027397,2]
[314980599,1708714252941,-500.0,0.00027397,2]
[314980600,1708714252950,-500.0,0.00027397,2]
[314980601,1708714252960,-500.0,0.00027397,2]
[314980602,1708714252969,-500.0,0.00027397,2]
[314980603,1708714252979,-500.0,0.00027397,2]
[314980604,1708714252988,-150.0,0.00027397,2]
[314980605,1708714252998,-500.0,0.00027397,2]
[314980606,1708714253007,-500.0,0.00027397,2]
[314980607,1708714253018,-500.0,0.00027397,2]
[314980608,1708714253027,-500.0,0.00027397,2]
[314980609,1708714253036,-500.0,0.00027397,2]
[314980610,1708714253046,-504.86500103,0.00027397,2]
[314980611,1708714253055,-500.0,0.00027397,2]
[314980612,1708714253066,-500.0,0.00027397,2]
[314980613,1708714253075,-500.0,0.00027397,2]
[314980614,1708714253085,-500.0,0.00027397,2]
[314980615,1708714253095,-503.85344429,0.00027397,2]
[314980616,1708714253105,-500.0,0.00027397,2]
[314980617,1708714253114,-500.0,0.00027397,2]
[314980618,1708714253123,-500.0,0.00027397,2]
[314980619,1708714253132,-500.0,0.00027397,2]
[314980620,1708714253141,-94.71754856,0.00027397,2]
[314980621,1708714253156,-419.72248003,0.00027397,2]
[314980622,1708714253166,-500.0,0.00027397,2]
[314980623,1708714253175,-1702.01673505,0.00027397,2]
[314980624,1708714253185,-500.0,0.00027397,2]
[314980625,1708714253195,-500.0,0.00027397,2]
[314980626,1708714253204,-503.83433714,0.00027397,2]
[314980627,1708714253214,-500.0,0.00027397,2]
[314980628,1708714253223,-500.0,0.00027397,2]
[314980629,1708714253233,-500.0,0.00027397,2]
[314980630,1708714253242,-500.0,0.00027397,2]
[314980631,1708714253251,-502.95023853,0.00027397,2]
[314980632,1708714253261,-500.0,0.00027397,2]
[314980633,1708714253271,-526.15133865,0.00027397,2]
[314980634,1708714253281,-650.95,0.00027397,2]
[314980635,1708714253290,-500.0,0.00027397,2]
[314980636,1708714253300,-500.0,0.00027397,2]
[314980637,1708714253309,-504.31884458,0.00027397,2]
[314980638,1708714253320,-500.0,0.00027397,2]
[314980639,1708714253329,-500.0,0.00027397,2]
[314980640,1708714253339,-500.0,0.00027397,2]
[314980641,1708714253348,-500.0,0.00027397,2]
[314980642,1708714253358,-500.0,0.00027397,2]
[314980643,1708714253368,-500.0,0.00027397,2]
[314980644,1708714253377,-503.81215039,0.00027397,2]
[314980645,1708714253387,-500.0,0.00027397,2]
[314980646,1708714253396,-500.0,0.00027397,2]
[314980647,1708714253405,-503.33055009,0.00027397,2]
[314980648,1708714253415,-500.0,0.00027397,2]
[314980649,1708714253424,-500.0,0.00027397,2]
[314980650,1708714253433,-500.0,0.00027397,2]
[314980651,1708714253442,-500.0,0.00027397,2]
[314980652,1708714253451,-500.0,0.00027397,2]
[314980653,1708714253461,-163.81927185,0.00027397,2]
[314980654,1708714253474,-336.18072815,0.00027397,2]
[314980655,1708714253484,-500.0,0.00027397,2]
[314980656,1708714253494,-500.0,0.00027397,2]
[314980657,1708714253504,-222.63046742,0.00027397,2]
[314980658,1708714253514,-502.22549009,0.00027397,2]
[314980659,1708714253523,-500.0,0.00027397,2]
[314980660,1708714253533,-500.0,0.00027397,2]
[314980661,1708714253542,-502.12472107,0.00027397,2]
[314980662,1708714253551,-500.0,0.00027397,2]
[314980663,1708714253561,-500.0,0.00027397,2]
[314980664,1708714253571,-501.98509192,0.00027397,2]
[314980665,1708714253581,-411.33523205,0.00027397,2]
[314980666,1708714253597,-88.66476795,0.00027397,2]
[314980667,1708714253606,-294.80246383,0.00027397,2]
[314980668,1708714253618,-205.19753617,0.00027397,2]
[314980669,1708714253627,-500.0,0.00027397,2]
[314980670,1708714253636,-500.0,0.00027397,2]
[314980671,1708714253645,-57.9955093,0.00027397,2]
[314980672,1708714253835,-442.0044907,0.00027397,2]
[314980673,1708714253844,-500.0,0.00027397,2]
[314980674,1708714253854,-500.0,0.00027397,2]
[314980675,1708714253863,-301.2255093,0.00027397,2]
[314980676,1708714279785,569.73,0.00021,2]
[314980677,1708714279809,2000.0,0.00021,2]
[314980678,1708714279830,759.84587185,0.00021,2]
[314980679,1708714281781,1240.15412815,9e-05,2]
[314980680,1708714281805,2000.0,9e-05,2]
[314980681,1708714281829,2000.0,9e-05,2]
[314980682,1708714281854,2000.0,9e-05,2]
[314980683,1708714281881,1729.52441304,9e-05,2]
[314980684,1708714287196,270.47558696,0.00018,2]
[314980685,1708714287220,1266.39810787,0.00018,2]
[314980686,1708714293095,733.60189213,0.0001,2]
[314980687,1708714293116,2000.0,0.0001,2]
[314980688,1708714293137,975.71473202,0.0001,2]
[314980689,1708714297598,1024.28526798,0.00011,2]
[314980690,1708714297631,3213.41986157,0.00011,2]
[314980691,1708714315218,3993.08754964,6.94e-05,2]
[314980692,1708714322405,4753.14758505,0.000155,2]
[314980693,1708714326523,820.81294388,0.0002,2]
[314980694,1708714384779,810.23299976,0.000225,2]
[314980695,1708714428927,150.0,0.000142,2]
[314980696,1708714428951,3529.19278328,0.000142,2]
[314980697,1708714450047,284.45430115,0.000125,2]
[314980698,1708714462016,236.80269785,0.00022,2]
[314980699,1708714465454,1489.97793478,0.000137,2]
[314980700,1708714465997,462.00327197,0.00022,2]
[314980701,1708714489987,151.0,0.00028481,120]
[314980703,1708714914067,18500.0,0.0002,2]
[314980704,1708714914092,19951.45846812,0.0002,2]
[314980706,1708715012228,151.0,0.00028133,120]
[314980708,1708715047047,903.24,0.00023158,2]
[314980709,1708715066105,-267.27899772,0.00024837,2]
[314980710,1708715066125,-177.74,0.00024937,2]
[314980711,1708715066147,-197.54718163,0.0002499,2]
[314980712,1708715066169,-16155.3468,0.0002499,2]
[314980713,1708715085282,-195.0,0.00025001,2]
[314980714,1708715085304,-672.0,0.00025066,2]
[314980715,1708715085325,-172.28,0.00025078,2]
[314980716,1708715085346,-250.0,0.00025088,2]
[314980717,1708715085367,-832.0,0.0002509,2]
[314980718,1708715085389,-2048.69,0.00025092,2]
[314980719,1708715085411,-606.32,0.00025092,2]
[314980720,1708715085432,-250.0,0.00025096,2]
[314980721,1708715085453,-2526.13,0.00025097,2]
[314980722,1708715085474,-200.0,0.00025104,2]
[314980723,1708715085497,-197.54718145,0.00025106,2]
[314980724,1708715085517,-803.97,0.00025112,2]
[314980725,1708715085538,-2705.0,0.00025117,2]
[314980726,1708715085560,-8541.06281855,0.0002513,2]
[314980730,1708715359100,-200.0,0.00025,2]
[314980731,1708715359120,-200.0,0.00025,2]
[314980732,1708715359139,-200.0,0.00025,2]
[314980733,1708715359159,-200.0,0.00025,2]
[314980734,1708715359178,-200.0,0.00025,2]
[314980735,1708715359197,-200.0,0.00025,2]
[314980736,1708715359218,-200.0,0.00025,2]
[314980737,1708715359239,-351.05274675,0.00025,3]
[314980770,1708715431902,-398.94725325,0.00025,3]
[314980772,1708715431913,-15358.93718145,0.0002513,2]
[314980774,1708715431922,-97594.01692881,0.00025165,2]
[314980777,1708715432076,-10.45645805,0.00025165,2]
[314980778,1708715432092,-12765.5,0.00025165,2]
[314980779,1708715432104,-1904.17038273,0.00025165,2]
[314980780,1708715432129,-2837.00818864,0.00025165,2]
[314980781,1708715432154,-27562.52733112,0.00025165,2]
[314980782,1708715432166,-19512.72703727,0.00025165,2]
[314980783,1708715432182,-1971.44374651,0.00025165,2]
[314980784,1708715432198,-138748.90839537,0.00025165,2]
[314980785,1708715432208,-200.0,0.00025182,2]
[314980786,1708715432217,-500.0,0.00025182,2]
[314980787,1708715432227,-500.0,0.00025198,2]
[314980788,1708715432236,-650.62,0.00025204,2]
[314980790,1708715432246,-2000.0,0.00025214,2]
[314980792,1708715432255,-197.54718145,0.00025222,2]
[314980794,1708715432264,-200.0,0.00025224,2]
[314980796,1708715432274,-150.0,0.00025226,2]
[314980798,1708715432284,-850.12,0.00025226,2]
[314980800,1708715432293,-499.99,0.00025226,2]
[314980802,1708715432303,-441.87,0.00025226,2]
[314980804,1708715432313,-164.57,0.00025274,2]
[314980807,1708715432322,-623.43,0.00025274,2]
[314980809,1708715432332,-185.0,0.00025301,2]
[314980811,1708715432342,-477.68177419,0.00025322,2]
[314980864,1708715437892,-690.19822581,0.00025322,2]
[314980865,1708715437902,-204.0,0.00025326,2]
[314980866,1708715437912,-208.0,0.00025326,2]
[314980867,1708715437922,-2105.1,0.00025332,2]
[314980868,1708715437935,-197.54718145,0.00025338,2]
[314980869,1708715437947,-903.24,0.00025422,2]
[314980870,1708715437958,-197.54718145,0.00025455,2]
[314980871,1708715437968,-177.74,0.00025485,2]
[314980872,1708715437978,-597.69811164,0.00025524,2]
[314980873,1708715437987,-197.54718145,0.00025571,2]
[314980874,1708715437997,-197.54718145,0.00025687,2]
[314980875,1708715438007,-328.0,0.00025689,2]
[314980876,1708715438016,-150.0,0.00025799,2]
[314980877,1708715438027,-150.0,0.00025799,2]
[314980878,1708715438036,-197.54718145,0.00025803,2]
[314980879,1708715438046,-200.0,0.000259,2]
[314980880,1708715438060,-1797.59,0.00025909,2]
[314980881,1708715438070,-197.54718145,0.00025919,2]
[314980882,1708715438079,-3146.0,0.00026003,2]
[314980883,1708715438089,-177.74,0.00026033,2]
[314980884,1708715438098,-197.54718145,0.00026035,2]
[314980885,1708715438108,-150.0,0.00026079,2]
[314980886,1708715438118,-761.7,0.0002608,2]
[314980887,1708715438127,-197.54718145,0.00026152,2]
[314980888,1708715438137,-500.0,0.0002616,2]
[314980889,1708715438146,-2669.0,0.000262,2]
[314980890,1708715438156,-298.88,0.00026234,2]
[314980891,1708715438166,-1500.0,0.00026237,2]
[314980892,1708715438175,-197.54718145,0.00026268,2]
[314980893,1708715438185,-259.36,0.0002628,2]
[314980894,1708715438195,-150.0,0.00026347,2]
[314980895,1708715438204,-298.88,0.00026372,2]
[314980897,1708715438215,-197.54718145,0.00026384,2]
[314980898,1708715438224,-250.0,0.00026397,2]
[314980899,1708715438233,-247.12842139,0.00026399,2]
[314980900,1708715438243,-19806.0482872,0.000264,2]
[314980901,1708715438253,-259.36,0.00026417,2]
[314980902,1708715438262,-162.22,0.00026469,2]
[314980903,1708715438271,-197.54718145,0.000265,2]
[314980904,1708715438281,-298.88,0.0002651,2]
[314980905,1708715438291,-164.57,0.00026538,2]
[314980906,1708715438301,-259.36,0.00026554,2]
[314980907,1708715438317,-300.0,0.00026572,2]
[314980908,1708715438326,-177.74,0.00026581,2]
[314980909,1708715438335,-197.54718145,0.00026616,2]
[314980910,1708715438345,-298.88,0.00026648,2]
[314980911,1708715438354,-250.0,0.00026671,2]
[314980912,1708715438363,-185.0,0.00026671,2]
[314980913,1708715438373,-259.36,0.00026691,2]
[314980914,1708715438382,-323.5989,0.00026698,2]
[314980915,1708715438391,-7143.9074,0.00026699,2]
[314980916,1708715438401,-13102.4585,0.00026699,2]
[314980917,1708715438410,-202.79866519,0.000267,2]
[314980918,1708715438420,-873.98702806,0.000267,3]
[314980919,1708715438429,-3689.70579275,0.000267,2]
[314980920,1708715438438,-199.725388,0.000267,2]
[314980921,1708715438447,-500.0,0.00026708,2]
[314980922,1708715438457,-274.02800878,0.00026728,2]
[314980923,1708715438466,-197.54718145,0.00026732,2]
[314980924,1708715438476,-298.88,0.00026786,2]
[314980925,1708715438485,-274.02800877,0.00026794,2]
[314980926,1708715438494,-4952.46101688,0.00026798,2]
[314980927,1708715438504,-31052.72504964,0.00026798,2]
[314980928,1708715438513,-259.36,0.00026828,2]
[314980929,1708715438522,-197.54718145,0.00026849,2]
[314980930,1708715438531,-274.02800877,0.0002686,2]
[314980931,1708715438541,-152.3142153,0.00026895,2]
[314980932,1708715438550,-3000.0,0.000269,2]
[314980933,1708715438562,-200.0,0.000269,2]
[314980934,1708715438571,-298.88,0.00026924,2]
[314980935,1708715438580,-250.0,0.00026945,2]
[314980936,1708715438590,-206.76338398,0.00026949,2]
[314980937,1708715438599,-5000.0,0.00026959,2]
[314980938,1708715438608,-375628.35325635,0.00026959,2]
[314980939,1708715438621,-262127.94904129,0.00026959,2]
[314980940,1708715438637,-3928.0225021,0.00026959,2]
[314980941,1708715438648,-1011.42791006,0.00026959,2]
[314980942,1708715438659,-346.23718848,0.00026959,2]
[314980943,1708715438679,-397.36463885,0.00026959,2]
[314980944,1708715438698,-719.36076778,0.00026959,2]
[314980975,1708715440599,-602.56454565,0.00026959,2]
[314980976,1708715440610,-2371.88647274,0.00026959,2]
[314980977,1708715440633,-1314.0001325,0.00026959,2]
[314980978,1708715441279,-415086.44561936,0.00026959,2]
[314980979,1708715441291,-26630.3563,0.0002696,2]
[314980980,1708715441301,-952.5471,0.0002696,2]
[314980981,1708715441313,-15775.0874,0.0002696,2]
[314980982,1708715441322,-190824.0818,0.0002696,2]
[314980983,1708715441332,-197.54718145,0.00026965,2]
[314980984,1708715441341,-259.36,0.00026965,2]
[314980985,1708715441351,-2105.1,0.00026976,2]
[314980986,1708715441361,-800.0,0.00027,3]
[314980987,1708715441371,-211.0,0.00027059,2]
[314980988,1708715441381,-7476.7979,0.00027059,2]
[314980989,1708715441442,-2842.1925,0.00027059,2]
[314980990,1708715441453,-1000.0,0.00027059,2]
[314980991,1708715441462,-175.2957782,0.0002706,2]
[314980992,1708715441472,-81818.0766,0.0002706,2]
[314980993,1708715441481,-298.88,0.00027062,2]
[314980994,1708715441491,-197.54718145,0.00027081,2]
[314980995,1708715441501,-259.36,0.00027102,2]
[314980996,1708715441510,-177.74,0.00027129,2]
[314980997,1708715441519,-1500.0,0.00027153,2]
[314980998,1708715441529,-245000.0,0.0002716,2]
[314980999,1708715441538,-3652.60488744,0.00027188,2]
[314981000,1708715441547,-3293.56483633,0.00027188,2]
[314981001,1708715441561,-516.01564899,0.00027188,2]
[314981002,1708715441570,-2122.54451544,0.00027188,2]
[314981003,1708715441578,-1500.0,0.00027193,2]
[314981004,1708715441588,-184.49803716,0.00027194,2]
[314981005,1708715441597,-100000.0,0.00027195,2]
[314981006,1708715441606,-197.54718145,0.00027197,2]
[314981007,1708715441615,-298.88,0.00027201,2]
[314981008,1708715441624,-273.12549085,0.00027219,2]
[314981009,1708715441633,-259.36,0.00027239,2]
[314981010,1708715441642,-500.0,0.00027256,2]
[314981011,1708715441651,-400.0,0.0002726,2]
[314981012,1708715441660,-187622.62945518,0.0002728,3]
[314981013,1708715441670,-150.0,0.00027288,2]
[314981014,1708715441680,-20000.0,0.00027297,2]
[314981015,1708715441690,-468.5225,0.00027297,2]
[314981016,1708715441700,-5834.6827,0.00027297,2]
[314981017,1708715441710,-170.35022239,0.00027315,13]
[314981018,1708715441719,-298.88,0.00027339,2]
[314981019,1708715441729,-3689.70579272,0.00027355,2]
[314981020,1708715441739,-800.0,0.0002737,2]
[314981021,1708715441748,-800.0,0.0002737,2]
[314981022,1708715441758,-508.94,0.00027376,2]
[314981023,1708715441768,-285514.7842584,0.00027378,2]
[314981024,1708715441777,-211.50811097,0.00027395,2]
[314981025,1708715441787,-300.0,0.00027396,2]
[314981026,1708715441796,-300.0,0.00027396,2]
[314981027,1708715441805,-300.0,0.00027396,2]
[314981028,1708715441817,-300.0,0.00027396,2]
[314981029,1708715441826,-300.0,0.00027396,2]
[314981030,1708715441835,-300.0,0.00027396,2]
[314981031,1708715441845,-300.0,0.00027396,2]
[314981032,1708715441857,-300.0,0.00027396,2]
[314981033,1708715441866,-300.0,0.00027396,2]
[314981034,1708715441876,-288.12780737,0.00027397,2]
[314981035,1708715441885,-502.99860709,0.00027397,2]
[314981036,1708715441895,-503.14651895,0.00027397,2]
[314981037,1708715441903,-402.83095076,0.00027397,2]
[314981038,1708715441913,-530.94946435,0.00027397,2]
[314981039,1708715441922,-500.0,0.00027397,2]
[314981040,1708715441932,-297.75893523,0.00027397,2]
[314981041,1708715441941,-501.24970863,0.00027397,2]
[314981042,1708715441950,-500.0,0.00027397,2]
[314981043,1708715441959,-500.0,0.00027397,2]
[314981044,1708715441967,-502.87958272,0.00027397,2]
[314981045,1708715441977,-503.25437751,0.00027397,2]
[314981046,1708715441986,-500.0,0.00027397,2]
[314981047,1708715441995,-500.0,0.00027397,2]
[314981048,1708715442004,-500.0,0.00027397,2]
[314981049,1708715442013,-500.0,0.00027397,2]
[314981050,1708715442022,-500.0,0.00027397,2]
[314981051,1708715442031,-500.0,0.00027397,2]
[314981052,1708715442039,-500.0,0.00027397,2]
[314981053,1708715442047,-523.50417894,0.00027397,2]
[314981054,1708715442059,-501.78778843,0.00027397,2]
[314981055,1708715442068,-500.88372313,0.00027397,2]
[314981056,1708715442077,-500.59004402,0.00027397,2]
[314981057,1708715442086,-501.24919909,0.00027397,2]
[314981058,1708715442095,-492.84737061,0.00027397,2]
[314981059,1708715442105,-500.0,0.00027397,2]
[314981060,1708715442115,-500.0,0.00027397,2]
[314981061,1708715442125,-502.78683168,0.00027397,2]
[314981062,1708715442134,-530.45816201,0.00027397,2]
[314981063,1708715442143,-500.0,0.00027397,2]